bitfinex/quotes_BTCUSD_20240715
["timestamp","ask_amount","ask_price","bid_price","bid_amount"]
[1721084703075,1.66485918,64401.0,64400.0,0.002024]
[1721084703251,1.81920875,64401.0,64400.0,0.002024]
[1721084703450,1.642601,64401.0,64400.0,0.002024]
[1721084703652,1.80446215,64401.0,64400.0,0.002024]
[1721084704049,1.65253951,64401.0,64400.0,0.001024]
[1721084704764,1.65653951,64401.0,64400.0,0.001024]
[1721084706524,2.04148051,64401.0,64400.0,0.001024]
[1721084706726,2.14015663,64401.0,64400.0,0.001024]
[1721084706965,2.14017519,64401.0,64400.0,0.001024]
[1721084707725,1.467688,64396.0,64395.0,0.009185]
[1721084707864,1.92461586,64396.0,64395.0,0.009185]
[1721084708070,2.28330527,64396.0,64395.0,0.009185]
[1721084708653,2.44032462,64396.0,64395.0,0.009185]
[1721084709148,2.44132462,64396.0,64395.0,0.011185]
[1721084709942,2.41736755,64396.0,64395.0,0.011185]
[1721084710130,2.44047579,64396.0,64395.0,0.011185]
[1721084710308,2.40636438,64396.0,64395.0,0.011185]
[1721084710509,2.39236438,64396.0,64395.0,0.011185]
[1721084710714,2.54671395,64396.0,64395.0,0.011185]
[1721084710912,2.54671395,64396.0,64395.0,0.009185]
[1721084710913,2.35292285,64396.0,64395.0,0.009185]
[1721084711141,2.2099035,64396.0,64395.0,0.010185]
[1721084711926,2.1994035,64396.0,64395.0,0.010185]
[1721084712132,2.04576889,64396.0,64395.0,0.010185]
[1721084712330,2.1852035,64396.0,64395.0,0.009185]
[1721084712530,2.19902469,64396.0,64395.0,0.010185]
[1721084712744,1.87826703,64396.0,64395.0,0.010185]
[1721084713409,1.85765245,64396.0,64395.0,0.010185]
[1721084714467,1.88201524,64396.0,64395.0,0.010185]
[1721084714651,1.88191524,64396.0,64395.0,0.010185]
[1721084714852,1.8920949,64396.0,64395.0,0.010185]
[1721084715005,2.2026729,64396.0,64395.0,0.010185]
[1721084715207,1.8920949,64396.0,64395.0,0.010185]
[1721084715638,1.88191524,64396.0,64395.0,0.010185]
[1721084716004,1.32746482,64396.0,64395.0,0.146085]
[1721084716257,1.48714781,64396.0,64395.0,0.146085]
[1721084716560,1.34637416,64396.0,64395.0,0.146085]
[1721084716925,1.34627416,64396.0,64395.0,0.146085]
[1721084717261,1.33227445,64396.0,64395.0,0.145085]
[1721084717461,1.34027445,64396.0,64395.0,0.146085]
[1721084717913,1.45980884,64396.0,64395.0,0.146085]
[1721084718320,1.45670264,64396.0,64395.0,0.146085]
[1721084718440,1.47678964,64396.0,64395.0,0.146085]
[1721084718797,1.4427226,64396.0,64395.0,0.146085]
[1721084719538,1.45448437,64396.0,64395.0,0.146085]
[1721084719764,1.3148248,64396.0,64395.0,0.146085]
[1721084720133,1.3148248,64396.0,64395.0,0.146185]
[1721084721809,1.3148248,64396.0,64395.0,0.010285]
[1721084721810,1.6454898,64396.0,64395.0,0.010285]
[1721084722349,1.80266862,64396.0,64395.0,0.010285]
[1721084722557,1.9560678,64396.0,64395.0,0.010285]
[1721084722753,1.64544821,64396.0,64395.0,0.010285]
[1721084724159,0.310626,64386.0,64382.0,0.00106353]
[1721084724318,1.1054181,64386.0,64382.0,0.00106353]
[1721084724518,1.4160441,64386.0,64382.0,0.00106353]
[1721084724770,1.58692798,64386.0,64382.0,0.00106353]
[1721084725407,1.58682798,64386.0,64381.0,0.17]
[1721084725658,1.7265694,64386.0,64382.0,0.07717479]
[1721084725859,1.7265694,64386.0,64383.0,0.00106353]
[1721084726075,1.56419515,64386.0,64383.0,0.00106353]
[1721084726363,1.72730064,64386.0,64385.0,0.013185]
[1721084726665,1.7273003,64386.0,64385.0,0.013185]
[1721084727425,1.7383003,64386.0,64385.0,0.013185]
[1721084727633,1.7382003,64386.0,64385.0,0.009185]
[1721084727843,1.7381003,64386.0,64385.0,0.009185]
[1721084728035,1.4354743,64386.0,64385.0,0.091385]
[1721084729359,1.27661278,64386.0,64385.0,0.090385]
[1721084729563,1.43633657,64386.0,64385.0,0.091385]
[1721084730099,1.29661278,64386.0,64385.0,0.090385]
[1721084730349,1.29661278,64386.0,64385.0,0.091385]
[1721084730350,1.30361278,64386.0,64385.0,0.091385]
[1721084731141,1.30351278,64386.0,64385.0,0.091385]
[1721084731308,1.30341278,64386.0,64385.0,0.091385]
[1721084731715,1.30836474,64386.0,64385.0,0.091385]
[1721084732640,1.30806573,64386.0,64385.0,0.151385]
[1721084732882,1.30806573,64386.0,64385.0,0.321385]
[1721084733739,1.30806573,64386.0,64385.0,0.321485]
[1721084734109,0.22137473,64386.0,64385.0,0.371485]
[1721084734237,0.22137473,64386.0,64385.0,0.321485]
[1721084734238,0.44687523,64386.0,64385.0,0.321485]
[1721084734439,0.99855711,64386.0,64385.0,0.321485]
[1721084734664,1.09312378,64386.0,64385.0,0.321485]
[1721084735072,1.00026505,64386.0,64385.0,0.321485]
[1721084735228,0.98452825,64386.0,64385.0,0.320485]
[1721084735434,0.97552825,64386.0,64385.0,0.320485]
[1721084735635,0.98252825,64386.0,64385.0,0.321485]
[1721084735854,0.97546867,64386.0,64385.0,0.321485]
[1721084736074,0.97546867,64386.0,64385.0,0.150485]
[1721084736075,0.96846867,64386.0,64385.0,0.150485]
[1721084736292,1.27909467,64386.0,64385.0,0.150485]
[1721084736510,1.27909467,64386.0,64385.0,0.153485]
[1721084737122,1.27909467,64386.0,64385.0,0.150485]
[1721084737351,1.58972067,64386.0,64385.0,0.090485]
[1721084738424,1.59472067,64386.0,64385.0,0.090485]
[1721084738705,1.59172067,64386.0,64385.0,0.090485]
[1721084738899,1.58972067,64386.0,64385.0,0.090485]
[1721084739131,1.5802168,64386.0,64385.0,0.090485]
[1721084739284,1.59187595,64386.0,64385.0,0.090485]
[1721084739481,1.59217136,64386.0,64385.0,0.090485]
[1721084739822,1.59317136,64386.0,64385.0,0.090485]
[1721084740230,1.59517136,64386.0,64385.0,0.090485]
[1721084740782,1.59346487,64386.0,64385.0,0.090485]
[1721084741394,1.58846487,64386.0,64385.0,0.090485]
[1721084741604,1.59546487,64386.0,64385.0,0.090485]
[1721084742002,1.58646487,64386.0,64385.0,0.090485]
[1721084742225,1.57151031,64386.0,64385.0,0.090485]
[1721084742425,1.59181421,64386.0,64385.0,0.090485]
[1721084742629,1.72655495,64386.0,64385.0,0.090485]
[1721084742802,1.72636802,64386.0,64385.0,0.090485]
[1721084743007,1.73136802,64386.0,64385.0,0.090485]
[1721084743703,1.73536802,64386.0,64385.0,0.090485]
[1721084744546,1.73539912,64386.0,64385.0,0.090485]
[1721084744777,1.41977312,64386.0,64385.0,0.090485]
[1721084744949,0.64344538,64386.0,64385.0,0.090485]
[1721084745153,1.28675087,64386.0,64385.0,0.009285]
[1721084745353,1.28275087,64386.0,64385.0,0.009285]
[1721084745557,1.59332527,64386.0,64385.0,0.009285]
[1721084745756,1.59532535,64386.0,64385.0,0.009285]
[1721084746158,1.59332535,64386.0,64385.0,0.009285]
[1721084746357,1.58632535,64386.0,64385.0,0.009285]
[1721084746875,1.59032535,64386.0,64385.0,0.009285]
[1721084747838,1.60232535,64386.0,64385.0,0.009285]
[1721084748423,1.60932535,64386.0,64385.0,0.009285]
[1721084748623,1.59032338,64386.0,64385.0,0.009285]
[1721084748836,1.60488989,64386.0,64385.0,0.009285]
[1721084749241,1.60688989,64386.0,64385.0,0.009285]
[1721084749696,1.58588989,64386.0,64385.0,0.009285]
[1721084750069,1.58888989,64386.0,64385.0,0.009285]
[1721084750928,1.59488989,64386.0,64385.0,0.009285]
[1721084751599,1.60488989,64386.0,64385.0,0.009285]
[1721084751948,1.59032338,64386.0,64385.0,0.009285]
[1721084752149,1.60229116,64386.0,64385.0,0.009285]
[1721084752354,1.60829116,64386.0,64385.0,0.010285]
[1721084752871,1.60229116,64386.0,64385.0,0.009285]
[1721084753275,1.60529116,64386.0,64385.0,0.009285]
[1721084753811,1.60229116,64386.0,64385.0,0.009285]
[1721084754012,1.29166516,64386.0,64385.0,0.156585]
[1721084754219,1.43151251,64386.0,64385.0,0.326585]
[1721084754420,1.28669738,64386.0,64385.0,0.326585]
[1721084754575,1.29173959,64386.0,64385.0,0.326585]
[1721084754967,1.29773959,64386.0,64385.0,0.326585]
[1721084755189,1.28573959,64386.0,64385.0,0.325585]
[1721084755435,0.09650638,64386.0,64385.0,0.205585]
[1721084755639,0.09650638,64386.0,64385.0,0.375585]
[1721084755640,0.56244538,64386.0,64385.0,0.375585]
[1721084755858,0.3350308,64386.0,64385.0,0.375585]
[1721084756079,0.3320308,64386.0,64385.0,0.205585]
[1721084756274,0.3320308,64386.0,64385.0,0.375585]
[1721084756275,0.23881938,64386.0,64385.0,0.375585]
[1721084756527,0.23981938,64386.0,64385.0,0.375585]
[1721084756749,0.6436568,64386.0,64385.0,0.325585]
[1721084756902,0.86007138,64386.0,64385.0,0.325585]
[1721084757302,0.96007138,64386.0,64385.0,0.329585]
[1721084757504,1.07657397,64386.0,64385.0,0.329585]
[1721084757704,1.08357314,64386.0,64385.0,0.329585]
[1721084757908,1.07657314,64386.0,64385.0,0.329585]
[1721084758111,0.13010235,64386.0,64385.0,0.409498]
[1721084758339,0.00084,64396.0,64385.0,0.409498]
[1721084758340,0.04659597,64395.0,64394.0,0.079913]
[1721084758542,0.00084,64396.0,64395.0,0.47338779]
[1721084759075,0.00084,64396.0,64395.0,0.53338779]
[1721084760163,0.00084,64396.0,64395.0,0.52638779]
[1721084760581,0.00084,64396.0,64395.0,0.346213]
[1721084760789,0.156129,64396.0,64395.0,0.1463]
[1721084761103,0.82049323,64396.0,64395.0,0.1463]
[1721084761315,0.61091523,64396.0,64395.0,0.3183]
[1721084761659,0.65743229,64396.0,64395.0,0.3183]
[1721084762020,0.92707293,64396.0,64395.0,0.2223]
[1721084762159,0.92607293,64396.0,64395.0,0.3303]
[1721084762357,0.92607293,64396.0,64395.0,0.1463]
[1721084762358,0.92796223,64396.0,64395.0,0.1463]
[1721084762560,0.99875068,64396.0,64395.0,0.3203]
[1721084762943,0.61838423,64396.0,64395.0,0.3163]
[1721084763356,0.61838423,64396.0,64395.0,0.3283]
[1721084764080,0.61838423,64396.0,64395.0,0.3284]
[1721084764197,0.61938423,64396.0,64395.0,0.3304]
[1721084764400,0.19802049,64396.0,64395.0,0.3784]
[1721084764601,0.008309,64396.0,64395.0,0.3664]
[1721084764808,0.008309,64396.0,64395.0,0.3804]
[1721084764809,0.009309,64396.0,64395.0,0.3804]
[1721084765003,0.009309,64396.0,64395.0,0.4404]
[1721084765286,0.009309,64396.0,64395.0,0.470313]
[1721084765466,0.009309,64396.0,64395.0,0.458313]
[1721084765606,0.008309,64396.0,64395.0,0.396313]
[1721084765820,0.009309,64396.0,64395.0,0.469313]
[1721084766010,0.010309,64396.0,64395.0,0.411313]
[1721084766226,0.010309,64396.0,64395.0,0.398313]
[1721084766227,0.00184,64396.0,64395.0,0.398313]
[1721084766460,0.00184,64396.0,64395.0,0.412313]
[1721084766647,0.00284,64396.0,64395.0,0.412313]
[1721084767659,0.00184,64396.0,64395.0,0.398313]
[1721084767874,0.00084,64396.0,64395.0,0.396313]
[1721084768079,0.00084,64396.0,64395.0,0.410313]
[1721084768298,0.00184,64396.0,64395.0,0.412313]
[1721084768505,0.00184,64396.0,64395.0,0.396313]
[1721084768707,0.00184,64396.0,64395.0,0.456313]
[1721084768917,0.00284,64396.0,64395.0,0.397604]
[1721084769132,0.00084,64401.0,64400.0,0.450313]
[1721084769321,0.00084,64401.0,64400.0,0.55048779]
[1721084770783,0.00084,64406.0,64405.0,0.450313]
[1721084771005,0.00084,64406.0,64405.0,0.473313]
[1721084771141,0.00084,64406.0,64405.0,0.62858]
[1721084771340,0.00084,64406.0,64405.0,0.473313]
[1721084771933,0.00184,64406.0,64405.0,0.487313]
[1721084772222,0.00184,64406.0,64405.0,0.64258]
[1721084772413,0.00184,64406.0,64405.0,0.65658]
[1721084772539,0.00084,64406.0,64405.0,0.39858]
[1721084772910,0.002,64421.0,64420.0,0.1928]
[1721084773039,0.002,64421.0,64420.0,0.3628]
[1721084773250,0.00892973,64421.0,64420.0,0.3628]
[1721084773640,0.00692973,64421.0,64420.0,0.3628]
[1721084773974,0.10692973,64421.0,64420.0,0.3628]
[1721084774417,0.10692973,64421.0,64420.0,0.1928]
[1721084774616,0.10692973,64421.0,64420.0,0.2008]
[1721084774819,0.10792973,64421.0,64420.0,0.3708]
[1721084774979,0.10792973,64421.0,64420.0,0.3748]
[1721084775185,0.10792973,64421.0,64420.0,0.4348]
[1721084775894,0.00692973,64421.0,64420.0,0.4228]
[1721084776095,0.310402,64433.0,64428.0,0.3611]
[1721084776096,0.255209,64429.0,64428.0,0.3611]
[1721084776520,0.57256952,64429.0,64428.0,0.1911]
[1721084776842,0.26215052,64429.0,64428.0,0.3611]
[1721084777503,0.10694152,64429.0,64428.0,0.3611]
[1721084777805,0.00694152,64429.0,64428.0,0.391013]
[1721084778140,0.00694152,64429.0,64428.0,0.221013]
[1721084778345,0.155191,64437.0,64435.0,0.05]
[1721084778587,0.16221477,64436.0,64435.0,0.22]
[1721084778988,0.00702277,64436.0,64435.0,0.22]
[1721084779189,0.00702277,64436.0,64435.0,0.364]
[1721084779398,0.310345,64445.0,64441.0,0.2858]
[1721084779399,0.1,64442.0,64441.0,0.2858]
[1721084779569,0.310345,64445.0,64441.0,0.2858]
[1721084779570,0.155177,64443.0,64442.0,0.17]
[1721084779998,0.155177,64443.0,64442.0,0.191913]
[1721084780202,0.465528,64443.0,64442.0,0.191913]
[1721084780451,0.310345,64445.0,64436.0,0.045]
[1721084780452,0.46557,64437.0,64436.0,0.045]
[1721084780563,0.15519,64437.0,64436.0,0.045]
[1721084780783,0.15519,64437.0,64436.0,0.207]
[1721084780987,0.15519,64437.0,64436.0,0.206]
[1721084781185,0.25519,64437.0,64436.0,0.206]
[1721084781862,0.101,64437.0,64436.0,0.206]
[1721084782044,0.10677788,64437.0,64436.0,0.206]
[1721084782249,0.00577788,64437.0,64436.0,0.206]
[1721084782781,0.410366,64440.0,64439.0,0.159]
[1721084782979,0.1,64440.0,64439.0,0.203]
[1721084783115,0.158179,64442.0,64441.0,0.044]
[1721084783310,0.255179,64442.0,64441.0,0.044]
[1721084783510,0.255179,64442.0,64441.0,0.267]
[1721084783715,0.565535,64442.0,64441.0,0.267]
[1721084784145,0.565535,64442.0,64441.0,0.108]
[1721084784347,0.255179,64442.0,64441.0,0.267]
[1721084784772,0.255179,64442.0,64441.0,0.269]
[1721084784985,0.1,64442.0,64441.0,0.3521]
[1721084785308,0.00835,64451.0,64450.0,0.1057]
[1721084785486,0.473819,64451.0,64450.0,0.1888]
[1721084785992,0.473819,64451.0,64450.0,0.1878]
[1721084786519,0.263506,64451.0,64450.0,0.1878]
[1721084787324,0.10835,64451.0,64450.0,0.3468]
[1721084787802,0.00835,64451.0,64450.0,0.1878]
[1721084788007,0.00835,64451.0,64450.0,0.3468]
[1721084788415,0.00835,64451.0,64450.0,0.1878]
[1721084788824,0.00835,64451.0,64450.0,0.3468]
[1721084789029,0.00835,64451.0,64450.0,0.1878]
[1721084789230,0.00835,64451.0,64450.0,0.376713]
[1721084790651,0.00835,64451.0,64450.0,0.217713]
[1721084792282,0.0090286,64451.0,64450.0,0.436713]
[1721084792512,0.00835,64451.0,64450.0,0.436713]
[1721084792722,0.00904674,64451.0,64450.0,0.436713]
[1721084793288,0.00904674,64451.0,64450.0,0.217713]
[1721084793484,0.00835,64451.0,64450.0,0.447713]
[1721084793685,0.00835,64451.0,64450.0,0.228713]
[1721084793949,0.00835,64451.0,64450.0,0.228813]
[1721084794194,0.00835,64451.0,64450.0,0.625972]
[1721084794405,0.00836,64461.0,64460.0,0.438013]
[1721084794770,0.00836,64461.0,64460.0,0.461013]
[1721084795372,0.00836,64461.0,64460.0,0.438013]
[1721084795805,0.0149372,64461.0,64460.0,0.378013]
[1721084796282,0.0149372,64461.0,64460.0,0.438013]
[1721084796419,0.0149372,64461.0,64460.0,0.378013]
[1721084796621,0.1700692,64461.0,64460.0,0.378013]
[1721084796844,0.1700692,64461.0,64460.0,0.388013]
[1721084797068,0.0149372,64461.0,64460.0,0.388013]
[1721084797803,0.0149372,64461.0,64460.0,0.401013]
[1721084798560,0.1700692,64461.0,64460.0,0.401013]
[1721084798764,0.4803342,64461.0,64460.0,0.320213]
[1721084799154,1.1008642,64461.0,64460.0,0.023]
[1721084799416,1.2008642,64461.0,64460.0,0.023]
[1721084799625,1.2008642,64461.0,64460.0,0.182]
[1721084800362,1.2008642,64461.0,64460.0,0.073]
[1721084801468,1.2008642,64461.0,64460.0,0.182]
[1721084801667,1.2008642,64461.0,64460.0,0.023]
[1721084801898,1.5111292,64461.0,64460.0,0.023]
[1721084802237,1.5111292,64461.0,64460.0,0.01]
[1721084802454,0.775782,64451.0,64450.0,0.03107653]
[1721084802679,0.875782,64451.0,64450.0,0.073013]
[1721084802838,0.875782,64451.0,64450.0,0.15018779]
[1721084802839,0.88163682,64451.0,64450.0,0.15018779]
[1721084803304,0.57132382,64451.0,64450.0,0.15018779]
[1721084803654,0.57132382,64451.0,64450.0,0.27927479]
[1721084804141,0.57132382,64451.0,64450.0,0.15918779]
[1721084804525,0.57132382,64451.0,64450.0,0.17118779]
[1721084805142,0.88163682,64451.0,64450.0,0.17118779]
[1721084805372,0.57132382,64451.0,64450.0,0.17118779]
[1721084805823,0.57132382,64451.0,64450.0,0.085013]
[1721084806177,0.57132382,64451.0,64450.0,0.094013]
[1721084806562,0.88163682,64451.0,64450.0,0.0641]
[1721084806760,0.88163682,64451.0,64450.0,0.082013]
[1721084807128,0.88163682,64451.0,64450.0,0.094013]
[1721084807335,0.572045,64451.0,64450.0,0.094013]
[1721084807657,0.572045,64451.0,64450.0,0.0211]
[1721084807658,0.882358,64451.0,64450.0,0.0211]
[1721084807859,0.882358,64451.0,64450.0,0.051013]
[1721084808691,0.882358,64451.0,64450.0,0.0211]
[1721084808885,0.882358,64451.0,64450.0,0.051013]
[1721084809090,0.572045,64451.0,64450.0,0.094013]
[1721084809768,0.106576,64451.0,64450.0,0.172813]
[1721084809936,0.006576,64451.0,64450.0,0.172813]
[1721084810161,0.006576,64451.0,64450.0,0.452813]
[1721084810564,0.15514,64458.0,64457.0,0.371713]
[1721084810777,0.155136,64460.0,64459.0,0.043]
[1721084810929,0.255136,64460.0,64459.0,0.043]
[1721084811099,0.00836,64461.0,64460.0,0.072913]
[1721084811535,0.00836,64461.0,64460.0,0.231913]
[1721084811962,0.473757,64461.0,64460.0,0.231913]
[1721084812143,0.00836,64461.0,64460.0,0.231913]
[1721084812551,0.00836,64461.0,64460.0,0.072913]
[1721084812760,0.00836,64461.0,64460.0,0.082913]
[1721084812961,0.00836,64461.0,64460.0,0.072913]
[1721084813421,0.00836,64461.0,64460.0,0.236413]
[1721084813747,0.00836,64461.0,64460.0,0.2395153]
[1721084813748,0.01494447,64461.0,64460.0,0.2395153]
[1721084814150,0.01494447,64461.0,64460.0,0.2565153]
[1721084814151,0.00836,64461.0,64460.0,0.2565153]
[1721084814404,0.00836,64461.0,64460.0,0.253413]
[1721084815371,0.00836,64461.0,64460.0,0.25651494]
[1721084815559,0.00836,64461.0,64460.0,0.5474023]
[1721084815766,0.00836,64461.0,64460.0,0.728816]
[1721084815971,0.00836,64461.0,64460.0,0.85767035]
[1721084816177,0.00836,64461.0,64460.0,0.76640135]
[1721084816380,0.00836,64461.0,64460.0,0.472413]
[1721084816608,0.00836,64461.0,64460.0,0.486413]
[1721084816779,0.00836,64461.0,64460.0,0.472413]
[1721084817093,0.00836,64461.0,64460.0,0.473413]
[1721084818033,0.00836,64461.0,64460.0,0.614547]
[1721084818259,0.00836,64461.0,64460.0,0.628547]
[1721084819044,0.00836,64461.0,64460.0,0.873047]
[1721084819248,0.00836,64461.0,64460.0,0.859047]
[1721084819457,0.00836,64461.0,64460.0,1.67243727]
[1721084819678,0.00084,64466.0,64460.0,1.67243727]
[1721084819679,0.00084,64466.0,64465.0,1.04618]
[1721084819876,0.00084,64466.0,64465.0,1.58545206]
[1721084820076,0.00084,64466.0,64465.0,1.89569706]
[1721084820307,0.00084,64466.0,64465.0,1.99569706]
[1721084820486,0.00084,64466.0,64465.0,2.02679706]
[1721084820688,0.00084,64480.0,64470.0,1.117465]
[1721084820841,0.00084,64480.0,64470.0,1.96290701]
[1721084822228,0.00084,64480.0,64479.0,1.427536]
[1721084822424,0.00084,64480.0,64479.0,0.705313]
[1721084822813,0.00084,64480.0,64479.0,1.278518]
[1721084823026,0.00084,64480.0,64479.0,0.241813]
[1721084823237,0.00084,64480.0,64479.0,0.92144087]
[1721084823469,0.00084,64480.0,64479.0,1.37279366]
[1721084823826,0.00084,64480.0,64479.0,0.99551479]
[1721084824000,0.00084,64480.0,64479.0,1.30569279]
[1721084824192,0.00084,64480.0,64479.0,1.30401479]
[1721084824437,0.00084,64480.0,64479.0,2.02437079]
[1721084824636,0.00084,64480.0,64479.0,1.86311079]
[1721084824951,0.00084,64480.0,64479.0,2.25316719]
[1721084825294,0.00084,64499.0,64479.0,2.25316719]
[1721084825295,0.00084,64499.0,64498.0,0.241173]
[1721084825498,0.00084,64499.0,64498.0,0.92729079]
[1721084825854,0.00084,64499.0,64498.0,1.23737779]
[1721084826005,0.00084,64499.0,64498.0,1.54746479]
[1721084826208,0.00084,64499.0,64498.0,1.95755179]
[1721084826495,0.00084,64499.0,64498.0,2.02155179]
[1721084826643,0.00084,64499.0,64498.0,2.06164317]
[1721084827050,0.00084,64499.0,64498.0,1.81438317]
[1721084827261,0.00084,64499.0,64498.0,1.80038317]
[1721084827459,0.00084,64499.0,64498.0,2.07564317]
[1721084827664,0.00084,64499.0,64498.0,1.82838317]
[1721084827863,0.00084,64499.0,64498.0,2.08964317]
[1721084828821,0.00084,64499.0,64498.0,1.78829179]
[1721084828971,0.00084,64499.0,64498.0,2.51946053]
[1721084829182,0.00083,64502.0,64500.0,1.452882]
[1721084829393,0.00083,64502.0,64500.0,1.91398565]
[1721084829635,0.00083,64502.0,64500.0,2.13162374]
[1721084829874,0.00083,64502.0,64500.0,1.96802374]
[1721084830147,0.00083,64502.0,64500.0,1.763642]
[1721084830351,0.00083,64502.0,64500.0,1.713642]
[1721084830553,0.00083,64502.0,64500.0,0.666311]
[1721084830691,0.00083,64502.0,64500.0,0.912388]
[1721084830927,0.00083,64502.0,64500.0,0.364273]
[1721084831122,0.00083,64502.0,64500.0,0.238173]
[1721084831342,0.01882655,64501.0,64500.0,0.238173]
[1721084831740,0.01882655,64501.0,64500.0,0.086913]
[1721084831741,0.163386,64501.0,64500.0,0.086913]
[1721084831940,0.17386255,64501.0,64500.0,0.086913]
[1721084832149,0.17386255,64501.0,64500.0,0.100913]
[1721084832457,1.21181855,64501.0,64500.0,0.014]
[1721084832666,1.21181855,64501.0,64489.0,0.00106353]
[1721084832667,0.00774,64500.0,64497.0,0.043]
[1721084832877,0.11882655,64501.0,64500.0,0.086913]
[1721084832878,0.01882655,64501.0,64500.0,0.086913]
[1721084833713,0.01882655,64501.0,64500.0,0.072913]
[1721084833714,0.00835,64501.0,64500.0,0.072913]
[1721084833917,0.01882655,64501.0,64500.0,0.078913]
[1721084834200,0.01882655,64501.0,64500.0,0.079913]
[1721084834635,0.18160255,64501.0,64500.0,0.063]
[1721084834791,0.18160255,64501.0,64500.0,0.092913]
[1721084834792,0.17386255,64501.0,64500.0,0.092913]
[1721084834991,0.80174655,64501.0,64500.0,0.02]
[1721084835217,0.79400655,64501.0,64500.0,0.056]
[1721084835417,0.48393455,64501.0,64500.0,0.085913]
[1721084835675,0.48393455,64501.0,64500.0,0.095913]
[1721084835884,0.48393455,64501.0,64500.0,0.013]
[1721084835885,0.90174655,64501.0,64500.0,0.013]
[1721084836141,0.47287,64498.0,64497.0,0.0721163]
[1721084836314,0.775217,64498.0,64497.0,0.0721163]
[1721084836450,0.77965073,64498.0,64497.0,0.0721163]
[1721084836649,0.77965073,64498.0,64491.0,0.0291163]
[1721084836650,0.310115,64492.0,64491.0,0.0291163]
[1721084836855,0.4773168,64492.0,64491.0,0.0291163]
[1721084837053,0.7796918,64492.0,64491.0,0.0291163]
[1721084837283,0.78573709,64492.0,64491.0,0.0291163]
[1721084837486,0.01045009,64492.0,64491.0,0.0291163]
[1721084837778,0.47562209,64492.0,64491.0,0.0291163]
[1721084837960,0.47562209,64492.0,64491.0,0.0431163]
[1721084837961,0.78573709,64492.0,64491.0,0.0431163]
[1721084838455,0.47562209,64492.0,64491.0,0.0431163]
[1721084838605,0.01045009,64492.0,64491.0,0.0861163]
[1721084839007,0.16550709,64492.0,64491.0,0.0861163]
[1721084839267,0.16550709,64492.0,64491.0,0.0721163]
[1721084839406,0.16550709,64492.0,64491.0,0.0801163]
[1721084839819,0.01045009,64492.0,64491.0,0.0831163]
[1721084840190,0.01045009,64492.0,64491.0,0.0721163]
[1721084840353,0.01045009,64492.0,64491.0,0.0931163]
[1721084840910,0.01045009,64492.0,64491.0,0.0811163]
[1721084841112,0.01045009,64492.0,64491.0,0.0891163]
[1721084841722,0.17324709,64492.0,64491.0,0.0891163]
[1721084842078,0.01045009,64492.0,64491.0,0.0891163]
[1721084842279,0.01045009,64492.0,64491.0,0.0721163]
[1721084842857,0.01045009,64492.0,64491.0,0.0891163]
[1721084843074,0.01819009,64492.0,64491.0,0.0841163]
[1721084843282,0.01819009,64492.0,64491.0,0.0811163]
[1721084843451,0.01045009,64492.0,64491.0,0.0931163]
[1721084843719,0.01819009,64492.0,64491.0,0.0841163]
[1721084843901,0.01819009,64492.0,64491.0,0.0951163]
[1721084844106,0.01045009,64492.0,64491.0,0.0831163]
[1721084844665,0.01819009,64492.0,64491.0,0.0831163]
[1721084845175,0.01045009,64492.0,64491.0,0.0831163]
[1721084845616,0.17324709,64492.0,64491.0,0.0971163]
[1721084845826,0.48336209,64492.0,64491.0,0.0971163]
[1721084846162,0.79347709,64492.0,64491.0,0.0541163]
[1721084846342,1.10359209,64492.0,64491.0,0.0541163]
[1721084846557,0.79347709,64492.0,64491.0,0.0541163]
[1721084846764,0.78573709,64492.0,64491.0,0.025]
[1721084846966,1.10359209,64492.0,64491.0,0.025]
[1721084847171,1.10359209,64492.0,64491.0,0.0541163]
[1721084847306,1.10359209,64492.0,64491.0,0.025]
[1721084847510,1.55750709,64492.0,64491.0,0.025]
[1721084847714,1.7003451,64492.0,64491.0,0.025]
[1721084848526,1.7003451,64492.0,64491.0,0.011]
[1721084848975,1.7003451,64492.0,64491.0,0.016]
[1721084849151,1.7003451,64492.0,64491.0,0.005]
[1721084849318,0.00774,64487.0,64480.0,0.0721163]
[1721084849518,0.46521,64487.0,64486.0,0.12017479]
[1721084849953,0.78309,64487.0,64486.0,0.043]
[1721084850157,0.88309,64487.0,64486.0,0.043]
[1721084850718,0.88509,64487.0,64486.0,0.043]
[1721084851641,0.162822,64482.0,64481.0,0.0721163]
[1721084851841,0.78315,64482.0,64481.0,0.0721163]
[1721084852076,0.78315,64482.0,64481.0,0.043]
[1721084852203,0.78315,64482.0,64481.0,0.0721163]
[1721084852437,0.77961337,64482.0,64481.0,0.0721163]
[1721084852642,0.78735337,64482.0,64481.0,0.0721163]
[1721084853059,0.78735337,64482.0,64481.0,0.0791163]
[1721084853236,0.79170994,64482.0,64481.0,0.0791163]
[1721084853434,0.79170994,64482.0,64481.0,0.0741163]
[1721084853723,0.79170994,64482.0,64481.0,0.0721163]
[1721084854046,0.79170994,64482.0,64480.0,0.0721163]
[1721084854047,0.77542,64481.0,64480.0,0.0721163]
[1721084854248,0.78751174,64481.0,64480.0,0.0721163]
[1721084854452,0.77977174,64481.0,64480.0,0.0721163]
[1721084856116,0.77977174,64481.0,64480.0,0.0771163]
[1721084856480,0.46960374,64481.0,64480.0,0.0771163]
[1721084856681,0.46960374,64481.0,64480.0,0.0721163]
[1721084857117,0.46960374,64481.0,64480.0,0.0851163]
[1721084857518,0.46960374,64481.0,64480.0,0.0721163]
[1721084857767,0.46960374,64481.0,64480.0,0.0771163]
[1721084858143,0.46960374,64481.0,64480.0,0.0911163]
[1721084858504,0.46960374,64481.0,64480.0,0.0771163]
[1721084858726,0.77977174,64481.0,64480.0,0.0411163]
[1721084858993,0.77977174,64481.0,64480.0,0.012]
[1721084858994,1.08993974,64481.0,64480.0,0.012]
[1721084859241,1.08993974,64481.0,64480.0,0.005]
[1721084859454,1.08993974,64481.0,64480.0,0.0341163]
[1721084859785,1.08993974,64481.0,64480.0,0.014]
[1721084859896,1.23013974,64481.0,64480.0,0.027]
[1721084860099,1.23013974,64481.0,64480.0,0.014]